[Event "*** SCC Grand Prix: Titled Tuesday Blitz"]
[Site "Chess.com"]
[Date "2020.08.04"]
[Round "8"]
[White "Jospem"]
[Black "Micki-taryan"]
[Result "1/2-1/2"]
[WhiteElo "2941"]
[BlackElo "3054"]
[TimeControl "180+1"]
[EndTime "15:18:30 PDT"]
[Termination "Game drawn - insufficient material"]

1. e4 {[%clk 0:03:00.9]} 1... c6 {[%clk 0:02:59.3]} 2. Nc3 {[%clk 0:03:00.6]}
2... d5 {[%clk 0:02:59.7]} 3. Nf3 {[%clk 0:03:01.3]} 3... dxe4 {[%clk
0:02:59.6]} 4. Nxe4 {[%clk 0:03:02.2]} 4... Nf6 {[%clk 0:03:00.2]} 5. Qe2 {[%clk
0:03:02.8]} 5... Nxe4 {[%clk 0:02:59.8]} 6. Qxe4 {[%clk 0:03:03.7]} 6... Qa5
{[%clk 0:02:59.2]} 7. Qf4 {[%clk 0:03:03]} 7... Qf5 {[%clk 0:02:57.1]} 8. Qe3
{[%clk 0:03:03]} 8... Qe6 {[%clk 0:02:56]} 9. b3 {[%clk 0:03:02.8]} 9... Qxe3+
{[%clk 0:02:50.3]} 10. fxe3 {[%clk 0:03:03.7]} 10... a5 {[%clk 0:02:47.3]} 11.
Bb2 {[%clk 0:03:03.8]} 11... a4 {[%clk 0:02:47.9]} 12. O-O-O {[%clk 0:03:04.4]}
12... Bg4 {[%clk 0:02:45.8]} 13. Be2 {[%clk 0:03:04.4]} 13... Nd7 {[%clk
0:02:45.2]} 14. h3 {[%clk 0:02:54.7]} 14... Bxf3 {[%clk 0:02:44.8]} 15. gxf3
{[%clk 0:02:54.3]} 15... e6 {[%clk 0:02:44]} 16. Kb1 {[%clk 0:02:50]} 16... Rg8
{[%clk 0:02:40.7]} 17. h4 {[%clk 0:02:49.1]} 17... h5 {[%clk 0:02:39.9]} 18. f4
{[%clk 0:02:38.4]} 18... axb3 {[%clk 0:02:39.2]} 19. axb3 {[%clk 0:02:36.6]}
19... g6 {[%clk 0:02:39.8]} 20. Bf3 {[%clk 0:02:31.2]} 20... Bg7 {[%clk
0:02:39.9]} 21. c3 {[%clk 0:02:25.6]} 21... f5 {[%clk 0:02:36.5]} 22. Kc2 {[%clk
0:02:24.8]} 22... Nf6 {[%clk 0:02:36.4]} 23. b4 {[%clk 0:02:14.5]} 23... Kd7
{[%clk 0:02:35.5]} 24. Kb3 {[%clk 0:02:14.4]} 24... Ng4 {[%clk 0:02:34.1]} 25.
Ra1 {[%clk 0:02:10.1]} 25... Bf6 {[%clk 0:02:32.2]} 26. Rxa8 {[%clk 0:02:09.4]}
26... Rxa8 {[%clk 0:02:31.4]} 27. c4 {[%clk 0:01:56.1]} 27... Bxb2 {[%clk
0:02:15.4]} 28. Kxb2 {[%clk 0:01:57]} 28... Kd6 {[%clk 0:02:09.4]} 29. Kb3
{[%clk 0:01:43.5]} 29... e5 {[%clk 0:02:07.7]} 30. fxe5+ {[%clk 0:01:42.4]}
30... Kxe5 {[%clk 0:02:06.7]} 31. b5 {[%clk 0:01:38.9]} 31... Kd6 {[%clk
0:02:02]} 32. Be2 {[%clk 0:01:17.1]} 32... cxb5 {[%clk 0:01:57.4]} 33. cxb5
{[%clk 0:01:16.7]} 33... Rd8 {[%clk 0:01:55.3]} 34. Rc1 {[%clk 0:01:13.7]} 34...
Rd7 {[%clk 0:01:50.1]} 35. Rc8 {[%clk 0:01:06.7]} 35... Ke6 {[%clk 0:01:50.3]}
36. Kc2 {[%clk 0:01:04]} 36... Ne5 {[%clk 0:01:44.3]} 37. Rg8 {[%clk 0:00:55.5]}
37... Kf6 {[%clk 0:01:44]} 38. Rc8 {[%clk 0:00:51.2]} 38... g5 {[%clk
0:01:41.4]} 39. hxg5+ {[%clk 0:00:51.1]} 39... Kxg5 {[%clk 0:01:41.7]} 40. Rh8
{[%clk 0:00:50.6]} 40... Ng4 {[%clk 0:01:37.3]} 41. Bf3 {[%clk 0:00:48]} 41...
b6 {[%clk 0:01:32.3]} 42. Rb8 {[%clk 0:00:46]} 42... Rd6 {[%clk 0:01:28.6]} 43.
Bc6 {[%clk 0:00:45.9]} 43... f4 {[%clk 0:01:20]} 44. exf4+ {[%clk 0:00:39.5]}
44... Kxf4 {[%clk 0:01:20.9]} 45. Rxb6 {[%clk 0:00:39.8]} 45... Ne5 {[%clk
0:01:09.4]} 46. Ra6 {[%clk 0:00:39.9]} 46... Rd8 {[%clk 0:01:02.4]} 47. Ra4+
{[%clk 0:00:29.7]} 47... Kg3 {[%clk 0:01:02.7]} 48. d4 {[%clk 0:00:30.1]} 48...
Ng4 {[%clk 0:00:51]} 49. b6 {[%clk 0:00:29.9]} 49... Rd6 {[%clk 0:00:45.9]} 50.
b7 {[%clk 0:00:19.1]} 50... Rxc6+ {[%clk 0:00:39.2]} 51. Kb3 {[%clk 0:00:19.7]}
51... Rb6+ {[%clk 0:00:39.7]} 52. Rb4 {[%clk 0:00:20.4]} 52... Rxb7 {[%clk
0:00:40.6]} 53. Rxb7 {[%clk 0:00:21.3]} 53... h4 {[%clk 0:00:37.8]} 54. d5
{[%clk 0:00:21.7]} 54... h3 {[%clk 0:00:34.1]} 55. d6 {[%clk 0:00:22.1]} 55...
h2 {[%clk 0:00:28.8]} 56. Rh7 {[%clk 0:00:20.4]} 56... Nf6 {[%clk 0:00:25.2]}
57. Rh6 {[%clk 0:00:20.2]} 57... Ne4 {[%clk 0:00:24.6]} 58. Rg6+ {[%clk
0:00:08.9]} 58... Kf4 {[%clk 0:00:18.3]} 59. Rh6 {[%clk 0:00:09]} 59... Kg3
{[%clk 0:00:18.3]} 60. Kb4 {[%clk 0:00:06.4]} 60... Nxd6 {[%clk 0:00:18]} 61.
Rxh2 {[%clk 0:00:05.6]} 61... Kxh2 {[%clk 0:00:16.9]} 1/2-1/2

[Event "*** SCC Grand Prix: Titled Tuesday Blitz"]
[Site "Chess.com"]
[Date "2020.08.04"]
[Round "8"]
[White "Goryachkina"]
[Black "goldenpuppy"]
[Result "1/2-1/2"]
[WhiteElo "2571"]
[BlackElo "2430"]
[TimeControl "180+1"]
[EndTime "15:18:32 PDT"]
[Termination "Game drawn by repetition"]

1. e4 {[%clk 0:03:00.9]} 1... c5 {[%clk 0:02:59.6]} 2. Nf3 {[%clk 0:03:00.5]}
2... a6 {[%clk 0:02:59.1]} 3. c3 {[%clk 0:02:59.7]} 3... d5 {[%clk 0:02:58.6]}
4. exd5 {[%clk 0:02:59]} 4... Qxd5 {[%clk 0:02:59.5]} 5. d4 {[%clk 0:02:59.4]}
5... g6 {[%clk 0:02:59.7]} 6. dxc5 {[%clk 0:02:39.9]} 6... Qxc5 {[%clk
0:02:52.6]} 7. Be3 {[%clk 0:02:39.4]} 7... Qc7 {[%clk 0:02:52.1]} 8. Nbd2 {[%clk
0:02:38.4]} 8... Nf6 {[%clk 0:02:52.1]} 9. Be2 {[%clk 0:02:29.4]} 9... Bg7
{[%clk 0:02:52]} 10. O-O {[%clk 0:02:28.9]} 10... O-O {[%clk 0:02:52.2]} 11. a4
{[%clk 0:02:27.5]} 11... Nc6 {[%clk 0:02:52.2]} 12. Nc4 {[%clk 0:02:24.2]} 12...
Be6 {[%clk 0:02:48.7]} 13. Bb6 {[%clk 0:02:16.7]} 13... Qd7 {[%clk 0:02:47.7]}
14. Nfe5 {[%clk 0:02:08.4]} 14... Nxe5 {[%clk 0:02:15.2]} 15. Nxe5 {[%clk
0:02:07.8]} 15... Qxd1 {[%clk 0:02:13.1]} 16. Rfxd1 {[%clk 0:02:07.7]} 16... Nd5
{[%clk 0:02:13.6]} 17. Bd4 {[%clk 0:02:07.1]} 17... Rfd8 {[%clk 0:02:11.2]} 18.
Bf3 {[%clk 0:02:04.5]} 18... Rac8 {[%clk 0:02:06.2]} 19. g3 {[%clk 0:02:01.8]}
19... b5 {[%clk 0:01:52.4]} 20. a5 {[%clk 0:01:50.8]} 20... Rd6 {[%clk 0:01:36]}
21. Ng4 {[%clk 0:01:22.4]} 21... h5 {[%clk 0:01:30.3]} 22. Ne3 {[%clk
0:01:19.3]} 22... Bh6 {[%clk 0:01:20.8]} 23. Kf1 {[%clk 0:00:58.3]} 23... Rcd8
{[%clk 0:01:16.4]} 24. Ke2 {[%clk 0:00:45.9]} 24... Nxe3 {[%clk 0:01:14.1]} 25.
Bxe3 {[%clk 0:00:41.8]} 25... Bc4+ {[%clk 0:01:13.5]} 26. Ke1 {[%clk 0:00:41.5]}
26... Bxe3 {[%clk 0:01:09.8]} 27. fxe3 {[%clk 0:00:41.2]} 27... Bd5 {[%clk
0:01:09.6]} 28. Bxd5 {[%clk 0:00:36.7]} 28... Rxd5 {[%clk 0:01:10.5]} 29. Rd4
{[%clk 0:00:36.8]} 29... e6 {[%clk 0:01:03.8]} 30. Rad1 {[%clk 0:00:35.9]} 30...
Rxd4 {[%clk 0:01:02.3]} 31. cxd4 {[%clk 0:00:35.4]} 31... Kf8 {[%clk 0:01:00.9]}
32. Kd2 {[%clk 0:00:34.7]} 32... Ke7 {[%clk 0:01:00.4]} 33. Rc1 {[%clk
0:00:34.4]} 33... Kd6 {[%clk 0:01:00.9]} 34. Kd3 {[%clk 0:00:34.5]} 34... f6
{[%clk 0:01:00]} 35. e4 {[%clk 0:00:34.2]} 35... g5 {[%clk 0:00:57.1]} 36. b4
{[%clk 0:00:33.5]} 36... Rh8 {[%clk 0:00:55.2]} 37. h3 {[%clk 0:00:31.3]} 37...
f5 {[%clk 0:00:49.3]} 38. e5+ {[%clk 0:00:27.4]} 38... Kd7 {[%clk 0:00:49]} 39.
d5 {[%clk 0:00:27.6]} 39... exd5 {[%clk 0:00:44.8]} 40. Kd4 {[%clk 0:00:27.8]}
40... h4 {[%clk 0:00:44.5]} 41. g4 {[%clk 0:00:21.2]} 41... fxg4 {[%clk
0:00:43.9]} 42. hxg4 {[%clk 0:00:22.1]} 42... h3 {[%clk 0:00:44.1]} 43. Kxd5
{[%clk 0:00:22]} 43... h2 {[%clk 0:00:44.3]} 44. Rh1 {[%clk 0:00:16.2]} 44...
Rh3 {[%clk 0:00:41.8]} 45. e6+ {[%clk 0:00:15]} 45... Ke7 {[%clk 0:00:40.7]} 46.
Ke5 {[%clk 0:00:15.4]} 46... Rh8 {[%clk 0:00:30.5]} 47. Kf5 {[%clk 0:00:15]}
47... Rh7 {[%clk 0:00:29.9]} 48. Ke5 {[%clk 0:00:14.9]} 48... Rh3 {[%clk
0:00:28.7]} 49. Kf5 {[%clk 0:00:14.9]} 49... Rh7 {[%clk 0:00:27.4]} 50. Ke5
{[%clk 0:00:14.9]} 50... Rh3 {[%clk 0:00:27.2]} 51. Kf5 {[%clk 0:00:15.2]} 51...
Rh8 {[%clk 0:00:25]} 52. Ke5 {[%clk 0:00:15.4]} 52... Rh7 {[%clk 0:00:23.9]} 53.
Kf5 {[%clk 0:00:14.9]} 53... Rh8 {[%clk 0:00:23.9]} 54. Ke5 {[%clk 0:00:15.2]}
54... Ke8 {[%clk 0:00:23.2]} 55. Kf6 {[%clk 0:00:14.4]} 55... Kf8 {[%clk
0:00:20.9]} 56. e7+ {[%clk 0:00:14.1]} 56... Ke8 {[%clk 0:00:21.2]} 57. Kxg5
{[%clk 0:00:09.7]} 57... Kxe7 {[%clk 0:00:20.5]} 58. Kg6 {[%clk 0:00:10.1]}
58... Rg8+ {[%clk 0:00:20.4]} 59. Kf5 {[%clk 0:00:10]} 59... Rf8+ {[%clk
0:00:20.5]} 60. Kg6 {[%clk 0:00:08.9]} 60... Rf2 {[%clk 0:00:20.1]} 61. g5
{[%clk 0:00:08.2]} 61... Kf8 {[%clk 0:00:20.1]} 62. Kh6 {[%clk 0:00:07.9]} 62...
Rg2 {[%clk 0:00:19.8]} 63. g6 {[%clk 0:00:06.8]} 63... Kg8 {[%clk 0:00:19.8]}
64. Re1 {[%clk 0:00:06.6]} 64... Rf2 {[%clk 0:00:20.2]} 65. Rh1 {[%clk
0:00:05.2]} 65... Rg2 {[%clk 0:00:20]} 66. Re1 {[%clk 0:00:05.2]} 66... Rf2
{[%clk 0:00:19.9]} 67. Rh1 {[%clk 0:00:05.4]} 67... Rg2 {[%clk 0:00:19.4]}
1/2-1/2

[Event "*** SCC Grand Prix: Titled Tuesday Blitz"]
[Site "Chess.com"]
[Date "2020.08.04"]
[Round "8"]
[White "Lion-Al-Messi"]
[Black "xberli"]
[Result "1-0"]
[WhiteElo "2482"]
[BlackElo "2328"]
[TimeControl "180+1"]
[EndTime "15:18:32 PDT"]
[Termination "Lion-Al-Messi won on time"]

1. e4 {[%clk 0:02:59.8]} 1... c5 {[%clk 0:02:58.3]} 2. Nf3 {[%clk 0:02:57.2]}
2... d6 {[%clk 0:02:58.3]} 3. d4 {[%clk 0:02:57.4]} 3... cxd4 {[%clk 0:02:59.2]}
4. Nxd4 {[%clk 0:02:58.1]} 4... Nf6 {[%clk 0:02:59.6]} 5. Nc3 {[%clk 0:02:58.7]}
5... a6 {[%clk 0:02:59.7]} 6. h3 {[%clk 0:02:57.9]} 6... e5 {[%clk 0:02:59]} 7.
Nde2 {[%clk 0:02:58]} 7... h5 {[%clk 0:02:58.9]} 8. Bg5 {[%clk 0:02:57.3]} 8...
Be6 {[%clk 0:02:58.8]} 9. g3 {[%clk 0:02:57.6]} 9... Nbd7 {[%clk 0:02:58.3]} 10.
Bg2 {[%clk 0:02:58.1]} 10... Rc8 {[%clk 0:02:58]} 11. O-O {[%clk 0:02:58.3]}
11... Be7 {[%clk 0:02:55.7]} 12. Qd2 {[%clk 0:02:57.7]} 12... b5 {[%clk
0:02:55.3]} 13. a3 {[%clk 0:02:57.3]} 13... O-O {[%clk 0:02:54.1]} 14. Rad1
{[%clk 0:02:57.3]} 14... Qb6 {[%clk 0:02:48.6]} 15. Be3 {[%clk 0:02:56.5]} 15...
Qb7 {[%clk 0:02:46.6]} 16. f4 {[%clk 0:02:56.1]} 16... Nb6 {[%clk 0:02:41]} 17.
b3 {[%clk 0:02:53.1]} 17... Rfd8 {[%clk 0:02:30.3]} 18. f5 {[%clk 0:02:52.9]}
18... Bd7 {[%clk 0:02:29.6]} 19. Bg5 {[%clk 0:02:48.6]} 19... Bc6 {[%clk
0:02:26]} 20. Bxf6 {[%clk 0:02:47.8]} 20... Bxf6 {[%clk 0:02:26.9]} 21. g4
{[%clk 0:02:48.1]} 21... Qe7 {[%clk 0:02:20.3]} 22. Nd5 {[%clk 0:02:46.7]} 22...
Bxd5 {[%clk 0:01:36.4]} 23. exd5 {[%clk 0:02:47.6]} 23... e4 {[%clk 0:01:28.3]}
24. Ng3 {[%clk 0:02:42.9]} 24... e3 {[%clk 0:01:20.5]} 25. Qe2 {[%clk 0:02:43]}
25... hxg4 {[%clk 0:01:11.9]} 26. hxg4 {[%clk 0:02:43.9]} 26... Bh4 {[%clk
0:00:56.6]} 27. Ne4 {[%clk 0:02:41.8]} 27... Qe5 {[%clk 0:00:56.4]} 28. Qxe3
{[%clk 0:02:40.2]} 28... Rxc2 {[%clk 0:00:54.5]} 29. Qxb6 {[%clk 0:02:36.5]}
29... Rxg2+ {[%clk 0:00:45.4]} 30. Kxg2 {[%clk 0:02:37.4]} 30... Qxe4+ {[%clk
0:00:45.5]} 31. Kh3 {[%clk 0:02:37]} 31... Qe5 {[%clk 0:00:26.5]} 32. Rf3 {[%clk
0:02:26.9]} 32... Bg5 {[%clk 0:00:20.5]} 33. Qd4 {[%clk 0:02:25.1]} 33... Qe2
{[%clk 0:00:19.4]} 34. Qd3 {[%clk 0:02:25.3]} 34... Qe5 {[%clk 0:00:18.1]} 35.
Kg2 {[%clk 0:02:21.5]} 35... Rc8 {[%clk 0:00:17.8]} 36. Rf2 {[%clk 0:02:19.6]}
36... Rc3 {[%clk 0:00:16.5]} 37. Qe2 {[%clk 0:02:15.3]} 37... Qg3+ {[%clk
0:00:13.7]} 38. Kh1 {[%clk 0:01:58.2]} 38... Re3 {[%clk 0:00:11.7]} 39. Qf1
{[%clk 0:01:57.7]} 39... Qxg4 {[%clk 0:00:10.4]} 40. Rd3 {[%clk 0:00:45.2]}
40... Qe4+ {[%clk 0:00:07.6]} 41. Qg2 {[%clk 0:00:45.4]} 41... Qxd3 {[%clk
0:00:06.6]} 42. Qxg5 {[%clk 0:00:45.4]} 42... Rh3+ {[%clk 0:00:06]} 43. Kg2
{[%clk 0:00:44.5]} 43... Rh6 {[%clk 0:00:05.9]} 44. Rf3 {[%clk 0:00:34.4]} 44...
Qe2+ {[%clk 0:00:05.3]} 45. Rf2 {[%clk 0:00:34.8]} 45... Qe4+ {[%clk 0:00:05.3]}
46. Kg3 {[%clk 0:00:33]} 46... Qxd5 {[%clk 0:00:03.7]} 47. Re2 {[%clk
0:00:28.5]} 47... Kh7 {[%clk 0:00:03.8]} 48. Re3 {[%clk 0:00:23.8]} 48... Qh1
{[%clk 0:00:03.4]} 49. Qg4 {[%clk 0:00:16.3]} 49... Rh2 {[%clk 0:00:03]} 50. Kf4
{[%clk 0:00:13.3]} 50... Qf1+ {[%clk 0:00:02.3]} 51. Rf3 {[%clk 0:00:04.7]}
51... Qb1 {[%clk 0:00:02.4]} 52. Rh3+ {[%clk 0:00:03.3]} 52... Rxh3 {[%clk
0:00:01.5]} 53. Qxh3+ {[%clk 0:00:04.2]} 53... Kg8 {[%clk 0:00:01.2]} 54. f6
{[%clk 0:00:04.5]} 54... Qc1+ {[%clk 0:00:01.3]} 55. Ke4 {[%clk 0:00:04.3]}
55... Qc2+ {[%clk 0:00:01.5]} 56. Kd5 {[%clk 0:00:03.8]} 56... Qg6 {[%clk
0:00:02]} 57. Qc8+ {[%clk 0:00:03.2]} 1-0

[Event "*** SCC Grand Prix: Titled Tuesday Blitz"]
[Site "Chess.com"]
[Date "2020.08.04"]
[Round "8"]
[White "g2_g3"]
[Black "gisela_roque"]
[Result "1-0"]
[WhiteElo "2035"]
[BlackElo "1845"]
[TimeControl "180+1"]
[EndTime "15:18:34 PDT"]
[Termination "g2_g3 won on time"]

1. d4 {[%clk 0:03:00.9]} 1... e6 {[%clk 0:02:58.5]} 2. Nf3 {[%clk 0:02:58.9]}
2... Nf6 {[%clk 0:02:58]} 3. e3 {[%clk 0:02:58.3]} 3... Be7 {[%clk 0:02:55.8]}
4. Bd3 {[%clk 0:02:57.9]} 4... O-O {[%clk 0:02:55.2]} 5. Nbd2 {[%clk 0:02:57.2]}
5... b6 {[%clk 0:02:55.4]} 6. O-O {[%clk 0:02:56.1]} 6... Bb7 {[%clk 0:02:55.4]}
7. Re1 {[%clk 0:02:45.5]} 7... c5 {[%clk 0:02:53.4]} 8. c3 {[%clk 0:02:44.4]}
8... d6 {[%clk 0:02:52.9]} 9. e4 {[%clk 0:02:39.3]} 9... Nbd7 {[%clk 0:02:50.4]}
10. Nf1 {[%clk 0:02:26.6]} 10... a6 {[%clk 0:02:49]} 11. Ng3 {[%clk 0:01:53.8]}
11... Qc7 {[%clk 0:02:41.2]} 12. e5 {[%clk 0:01:45.7]} 12... Bxf3 {[%clk
0:02:23.8]} 13. Qxf3 {[%clk 0:01:17]} 13... dxe5 {[%clk 0:02:21.2]} 14. Nh5
{[%clk 0:00:53.1]} 14... exd4 {[%clk 0:02:09.7]} 15. cxd4 {[%clk 0:00:39.1]}
15... Nxh5 {[%clk 0:01:56.6]} 16. Qxh5 {[%clk 0:00:32.8]} 16... Nf6 {[%clk
0:01:56.6]} 17. Qh4 {[%clk 0:00:20.1]} 17... Rad8 {[%clk 0:01:42.5]} 18. Bg5
{[%clk 0:00:19.3]} 18... Rxd4 {[%clk 0:01:30.4]} 19. Qh3 {[%clk 0:00:19.5]}
19... Qd7 {[%clk 0:01:05.7]} 20. Rad1 {[%clk 0:00:16.7]} 20... Rd8 {[%clk
0:00:49.4]} 21. Bxf6 {[%clk 0:00:15]} 21... Rxd3 {[%clk 0:00:48.3]} 22. Rxd3
{[%clk 0:00:15]} 22... Qxd3 {[%clk 0:00:46.1]} 23. Qxd3 {[%clk 0:00:14.8]} 23...
Rxd3 {[%clk 0:00:45.5]} 24. Bxe7 {[%clk 0:00:15.1]} 24... Rd2 {[%clk 0:00:43.8]}
25. Rb1 {[%clk 0:00:15.1]} 25... f6 {[%clk 0:00:40.9]} 26. b4 {[%clk 0:00:12.5]}
26... Kf7 {[%clk 0:00:40.3]} 27. bxc5 {[%clk 0:00:11.5]} 27... Kxe7 {[%clk
0:00:39.6]} 28. cxb6 {[%clk 0:00:11.8]} 28... Rd8 {[%clk 0:00:38.9]} 29. b7
{[%clk 0:00:11.7]} 29... Rb8 {[%clk 0:00:38.8]} 30. Rb6 {[%clk 0:00:08.9]} 30...
e5 {[%clk 0:00:36.8]} 31. Kf1 {[%clk 0:00:08.7]} 31... Kd7 {[%clk 0:00:36.9]}
32. Ke2 {[%clk 0:00:07.7]} 32... Kc7 {[%clk 0:00:37]} 33. Rxa6 {[%clk
0:00:08.1]} 33... Rxb7 {[%clk 0:00:37.2]} 34. Ra3 {[%clk 0:00:08]} 34... Kd6
{[%clk 0:00:31.9]} 35. Ke3 {[%clk 0:00:08.4]} 35... Ke6 {[%clk 0:00:31.6]} 36.
Rd3 {[%clk 0:00:07.9]} 36... f5 {[%clk 0:00:28.9]} 37. a4 {[%clk 0:00:07.9]}
37... g5 {[%clk 0:00:24.8]} 38. Ra3 {[%clk 0:00:07.8]} 38... g4 {[%clk
0:00:24.2]} 39. a5 {[%clk 0:00:06.6]} 39... f4+ {[%clk 0:00:23.4]} 40. Ke4
{[%clk 0:00:06.8]} 40... Rb4+ {[%clk 0:00:22.8]} 41. Kd3 {[%clk 0:00:07]} 41...
e4+ {[%clk 0:00:16.8]} 42. Kc3 {[%clk 0:00:07.3]} 42... Rb8 {[%clk 0:00:15.8]}
43. a6 {[%clk 0:00:07.7]} 43... Ra8 {[%clk 0:00:14.9]} 44. Kd4 {[%clk
0:00:07.6]} 44... e3 {[%clk 0:00:07]} 45. fxe3 {[%clk 0:00:06.7]} 45... f3
{[%clk 0:00:06.4]} 46. gxf3 {[%clk 0:00:06.7]} 46... gxf3 {[%clk 0:00:06.9]} 47.
Kd3 {[%clk 0:00:06.3]} 47... f2 {[%clk 0:00:05.4]} 48. Ke2 {[%clk 0:00:06]}
48... Rf8 {[%clk 0:00:03.8]} 49. Kf1 {[%clk 0:00:06.1]} 49... Kd6 {[%clk
0:00:02.7]} 50. a7 {[%clk 0:00:06.6]} 50... Ra8 {[%clk 0:00:02]} 51. Kxf2 {[%clk
0:00:07.1]} 51... Ke5 {[%clk 0:00:01.2]} 52. Ke2 {[%clk 0:00:07.6]} 52... Ke4
{[%clk 0:00:01.4]} 53. Ra6 {[%clk 0:00:08.1]} 53... Ke5 {[%clk 0:00:01.5]} 54.
h3 {[%clk 0:00:08.1]} 54... Ke4 {[%clk 0:00:01.6]} 55. Kd2 {[%clk 0:00:07.8]}
55... Ke5 {[%clk 0:00:01.6]} 56. Kc3 {[%clk 0:00:08]} 56... Ke4 {[%clk
0:00:01.6]} 57. Kc4 {[%clk 0:00:08.6]} 57... Kxe3 {[%clk 0:00:01]} 58. Kb5
{[%clk 0:00:09.1]} 1-0

[Event "*** SCC Grand Prix: Titled Tuesday Blitz"]
[Site "Chess.com"]
[Date "2020.08.04"]
[Round "8"]
[White "AvitalBor"]
[Black "vladislavkovalev"]
[Result "1-0"]
[WhiteElo "2775"]
[BlackElo "2874"]
[TimeControl "180+1"]
[EndTime "15:18:53 PDT"]
[Termination "AvitalBor won by checkmate"]

1. e4 {[%clk 0:03:00.9]} 1... e5 {[%clk 0:03:00.5]} 2. Nf3 {[%clk 0:03:00.8]}
2... Nc6 {[%clk 0:03:01.1]} 3. Bb5 {[%clk 0:03:01.3]} 3... a6 {[%clk 0:03:01.6]}
4. Ba4 {[%clk 0:03:01.7]} 4... Nf6 {[%clk 0:03:02.1]} 5. d3 {[%clk 0:03:02.2]}
5... d6 {[%clk 0:03:02.1]} 6. h3 {[%clk 0:02:57.3]} 6... g6 {[%clk 0:03:02.5]}
7. O-O {[%clk 0:02:56]} 7... Bg7 {[%clk 0:03:02.9]} 8. c3 {[%clk 0:02:55.8]}
8... O-O {[%clk 0:03:03.3]} 9. Re1 {[%clk 0:02:56.2]} 9... b5 {[%clk 0:03:00.3]}
10. Bc2 {[%clk 0:02:44.9]} 10... h6 {[%clk 0:02:58.9]} 11. Nbd2 {[%clk
0:02:45.1]} 11... Bb7 {[%clk 0:02:58.6]} 12. Nf1 {[%clk 0:02:43.9]} 12... Re8
{[%clk 0:02:58.9]} 13. N3h2 {[%clk 0:02:40.1]} 13... d5 {[%clk 0:02:58.8]} 14.
Qf3 {[%clk 0:02:40.4]} 14... Qd6 {[%clk 0:02:51.7]} 15. Ng3 {[%clk 0:02:38.6]}
15... Rad8 {[%clk 0:02:49.8]} 16. Ng4 {[%clk 0:02:37.5]} 16... Nxg4 {[%clk
0:02:49.7]} 17. hxg4 {[%clk 0:02:38.4]} 17... Bc8 {[%clk 0:02:27]} 18. Bb3
{[%clk 0:02:29.6]} 18... Be6 {[%clk 0:02:23.8]} 19. exd5 {[%clk 0:02:29.6]}
19... Bxd5 {[%clk 0:02:23]} 20. Ne4 {[%clk 0:02:29.8]} 20... Qe6 {[%clk
0:01:52.5]} 21. Bxd5 {[%clk 0:02:19.6]} 21... Rxd5 {[%clk 0:01:53.4]} 22. Bxh6
{[%clk 0:02:15.8]} 22... f5 {[%clk 0:01:53.7]} 23. gxf5 {[%clk 0:01:17.8]} 23...
gxf5 {[%clk 0:01:54.6]} 24. Ng5 {[%clk 0:01:18.2]} 24... Qd7 {[%clk 0:01:50.5]}
25. Bxg7 {[%clk 0:01:17.9]} 25... Kxg7 {[%clk 0:01:51.4]} 26. Rad1 {[%clk
0:00:56.7]} 26... f4 {[%clk 0:01:46.9]} 27. Qe4 {[%clk 0:00:52.3]} 27... Rh8
{[%clk 0:01:43.9]} 28. d4 {[%clk 0:00:48.9]} 28... Rh5 {[%clk 0:01:42.8]} 29.
Nf3 {[%clk 0:00:35.6]} 29... Rd6 {[%clk 0:01:43.3]} 30. d5 {[%clk 0:00:21.9]}
30... Rdh6 {[%clk 0:01:43.3]} 31. Kf1 {[%clk 0:00:22]} 31... Ne7 {[%clk
0:01:39]} 32. Nxe5 {[%clk 0:00:21.6]} 32... Qd6 {[%clk 0:01:26.3]} 33. Ng4
{[%clk 0:00:19.5]} 33... Rh1+ {[%clk 0:01:22.2]} 34. Ke2 {[%clk 0:00:19.8]}
34... Rxe1+ {[%clk 0:01:23.1]} 35. Rxe1 {[%clk 0:00:19.3]} 35... Rg6 {[%clk
0:01:20.9]} 36. Ne5 {[%clk 0:00:18.8]} 36... Rg5 {[%clk 0:01:18.7]} 37. Nf3
{[%clk 0:00:19.1]} 37... Rxd5 {[%clk 0:01:16.1]} 38. Kf1 {[%clk 0:00:19.6]}
38... Kf6 {[%clk 0:01:08.7]} 39. Nd4 {[%clk 0:00:17.3]} 39... c5 {[%clk
0:01:04.8]} 40. Nf3 {[%clk 0:00:16.9]} 40... Ng6 {[%clk 0:01:01.5]} 41. Qe8
{[%clk 0:00:13.3]} 41... Rd1 {[%clk 0:00:57.2]} 42. Kg1 {[%clk 0:00:12.3]} 42...
Rxe1+ {[%clk 0:00:53.7]} 43. Qxe1 {[%clk 0:00:13.2]} 43... Qd5 {[%clk
0:00:48.7]} 44. a3 {[%clk 0:00:11.8]} 44... Kf7 {[%clk 0:00:35.6]} 45. Qe2
{[%clk 0:00:11.4]} 45... Ne7 {[%clk 0:00:26.6]} 46. Qc2 {[%clk 0:00:10.7]} 46...
Ng6 {[%clk 0:00:23.3]} 47. a4 {[%clk 0:00:10.9]} 47... Kg7 {[%clk 0:00:20.7]}
48. axb5 {[%clk 0:00:10.8]} 48... axb5 {[%clk 0:00:21.6]} 49. Qe2 {[%clk
0:00:11.2]} 49... b4 {[%clk 0:00:17.7]} 50. cxb4 {[%clk 0:00:10.9]} 50... cxb4
{[%clk 0:00:18.6]} 51. Qc2 {[%clk 0:00:10.5]} 51... Kh6 {[%clk 0:00:12.9]} 52.
Qc7 {[%clk 0:00:09.6]} 52... Qb3 {[%clk 0:00:10.4]} 53. Nd4 {[%clk 0:00:05.5]}
53... Qd1+ {[%clk 0:00:08.1]} 54. Kh2 {[%clk 0:00:05.9]} 54... Qxd4 {[%clk
0:00:09]} 55. Qb8 {[%clk 0:00:05]} 55... Qxb2 {[%clk 0:00:08.2]} 56. f3 {[%clk
0:00:04.7]} 56... Qd4 {[%clk 0:00:08.4]} 57. Qd8 {[%clk 0:00:02.2]} 57... b3
{[%clk 0:00:07.2]} 58. Qxd4 {[%clk 0:00:03.1]} 58... Kg5 {[%clk 0:00:02.5]} 59.
Qb2 {[%clk 0:00:03.7]} 59... Ne5 {[%clk 0:00:03.4]} 60. Qxb3 {[%clk 0:00:04.1]}
60... Kh4 {[%clk 0:00:02.2]} 61. Qd5 {[%clk 0:00:04.2]} 61... Ng6 {[%clk
0:00:02.6]} 62. Kg1 {[%clk 0:00:04]} 62... Ne5 {[%clk 0:00:03.5]} 63. Qd8+
{[%clk 0:00:03.7]} 63... Kg3 {[%clk 0:00:04.4]} 64. Qg5+ {[%clk 0:00:03.7]}
64... Ng4 {[%clk 0:00:05.3]} 65. Qxg4# {[%clk 0:00:03.8]} 1-0